fUST/lending_fUST_20250309
["ID","MTS","AMOUNT","RATE_DAILY","PERIOD"]
[355667564,1741449957119,-300.0,0.00028009,2]
[355667565,1741449957141,-117.83548671,0.0002801,2]
[355667566,1741449957162,-500.0,0.0002801,2]
[355667567,1741449957185,-500.0,0.0002801,2]
[355667568,1741449957206,-449.00238211,0.0002801,2]
[355667569,1741450029117,-300.0,0.00028009,2]
[355667570,1741450029140,-184.77170958,0.0002801,2]
[355667571,1741450029162,-500.0,0.0002801,2]
[355667572,1741450029185,-502.07812806,0.0002801,2]
[355667573,1741450029210,-297.68100016,0.0002801,2]
[355667574,1741450030189,-202.31899984,0.0002801,2]
[355667575,1741450030223,-500.0,0.0002801,2]
[355667576,1741450030247,-500.0,0.0002801,2]
[355667577,1741450030269,-500.0,0.0002801,2]
[355667578,1741450030293,-27.38205602,0.0002801,2]
[355667579,1741450042075,-472.61794398,0.0002801,2]
[355667580,1741450042098,-199.75733138,0.0002801,2]
[355667581,1741450146080,-291.0,0.00028009,2]
[355667582,1741450146103,-300.24266862,0.0002801,2]
[355667583,1741450146125,-500.0,0.0002801,2]
[355667584,1741450146148,-845.93394671,0.0002801,2]
[355667585,1741450146171,-659.13017037,0.0002801,2]
[355667586,1741450146192,-639.23073795,0.00030067,5]
[355667587,1741450146214,-504.45084493,0.00030067,5]
[355667588,1741450146235,-502.69883053,0.00030067,5]
[355667589,1741450146260,-500.0,0.00030067,5]
[355667590,1741450146283,-500.0,0.00030067,5]
[355667591,1741450146303,-158.7394532,0.00030067,5]
[355667592,1741450146324,-500.0,0.00030067,5]
[355667593,1741450146347,-500.0,0.00030067,5]
[355667594,1741450146367,-500.03866135,0.00030067,5]
[355667595,1741450146388,-500.0,0.00030067,5]
[355667596,1741450146409,-500.0,0.00030067,2]
[355667597,1741450146431,-500.0,0.00030067,5]
[355667598,1741450146451,-500.0,0.00030067,5]
[355667599,1741450146472,-160.74450879,0.00030067,5]
[355667600,1741450146492,-500.0,0.00030067,5]
[355667601,1741450146513,-500.0,0.00030067,2]
[355667602,1741450146534,-592.75987409,0.00030067,2]
[355667603,1741450146554,-503.12171407,0.00030067,5]
[355667604,1741450146575,-380.0,0.00030878,2]
[355667605,1741450146596,-1226.28296551,0.000309,5]
[355667606,1741450146616,-500.0,0.00032,10]
[355667607,1741450146636,-500.0,0.00032,10]
[355667608,1741450146656,-164.29104045,0.00032,10]
[355667609,1741450146676,-500.0,0.00032,10]
[355667610,1741450146697,-500.0,0.00032,10]
[355667611,1741450146719,-500.0,0.00032,10]
[355667612,1741450146739,-500.0,0.00032,10]
[355667613,1741450146760,-500.0,0.00032,10]
[355667614,1741450146781,-500.0,0.00032,10]
[355667615,1741450146803,-500.0,0.00032,10]
[355667616,1741450146825,-500.0,0.00032,10]
[355667617,1741450146847,-500.0,0.00032,10]
[355667618,1741450146869,-500.0,0.00032,10]
[355667619,1741450146892,-480.83238343,0.00032,10]
[355667620,1741450147071,-19.16761657,0.00032,10]
[355667621,1741450147093,-500.0,0.00032,10]
[355667622,1741450147114,-500.0,0.00032,5]
[355667623,1741450147135,-500.0,0.00032,5]
[355667624,1741450147156,-500.0,0.00032,5]
[355667625,1741450147177,-1000.0,0.00035546,5]
[355667626,1741450147198,-1000.0,0.00035546,2]
[355667627,1741450147223,-163.240494,0.0003589,2]
[355667628,1741450147244,-31.35557646,0.000362,98]
[355667629,1741450153146,-500.0,0.00032,5]
[355667630,1741450153167,-149.77556341,0.000362,98]
[355667631,1741450153187,-500.0,0.00036799,5]
[355667632,1741450153207,-845.16435461,0.00037479,5]
[355667633,1741450154175,-154.83564539,0.00037479,5]
[355667634,1741450154197,-1013.41015408,0.00037479,5]
[355667635,1741450154219,-502.55995323,0.00038639,5]
[355667636,1741450154239,-48.01179213,0.00039167,2]
[355667637,1741450157086,-815.74331757,0.00039167,2]
[355667638,1741450157108,-215.28345825,0.000409,2]
[355667639,1741450157129,-162.4014518,0.00041146,64]
[355667640,1741450157163,-216.021718,0.00041391,2]
[355667641,1741450157189,-163.240494,0.0004263,2]
[355667678,1741450232580,-160.0,0.00045174,2]
[355667680,1741450232590,-314.97205145,0.00045465,28]
[355667682,1741450232601,-342.85794855,0.00045565,10]
[355667684,1741450232614,-1157.14205145,0.00045565,10]
[355667686,1741450232624,-215.28345825,0.000459,2]
[355667687,1741450232634,-1200.0,0.00046,30]
[355667688,1741450232644,-181.21139645,0.00046475,2]
[355667689,1741450232654,-600.0,0.00046547,2]
[355667690,1741450232664,-696.63,0.00046565,10]
[355667692,1741450232673,-1790.02724356,0.00046565,4]
[355667693,1741450232689,-500.0,0.00046573,10]
[355667695,1741450232699,-500.0,0.00046573,10]
[355667697,1741450232708,-4072.88589812,0.00046575,42]
[355667699,1741450232718,-774.41453842,0.00046575,42]
[355667701,1741450232754,-500.0,0.00046575,120]
[355667705,1741450232763,-500.0,0.00046575,120]
[355667709,1741450232773,-500.0,0.00046575,120]
[355667712,1741450232787,-500.0,0.00046575,120]
[355667714,1741450232796,-500.0,0.00046575,120]
[355667716,1741450232806,-500.0,0.00046575,2]
[355667718,1741450232827,-657.27,0.00046575,120]
[355667719,1741450232837,-500.0,0.00046575,120]
[355667720,1741450232847,-801.55,0.00046575,120]
[355667721,1741450232858,-322.06144267,0.00046575,5]
[355667722,1741450232869,-500.0,0.00046575,120]
[355667723,1741450232879,-300.55534947,0.00046575,120]
[355667724,1741450232889,-500.0,0.00046575,120]
[355667725,1741450232900,-500.0,0.00046575,120]
[355667726,1741450232910,-500.0,0.00046575,120]
[355667727,1741450232920,-500.0,0.00046575,120]
[355667728,1741450232930,-500.0,0.00046575,120]
[355667729,1741450232939,-3101.0,0.00046575,120]
[355667730,1741450232949,-500.0,0.00046575,120]
[355667731,1741450232960,-500.0,0.00046575,120]
[355667732,1741450232970,-500.0,0.00046575,120]
[355667733,1741450232980,-500.0,0.00046575,120]
[355667734,1741450232990,-566.66,0.00046575,120]
[355667735,1741450233000,-500.0,0.00046575,120]
[355667736,1741450233009,-1248.55,0.00046575,120]
[355667737,1741450233019,-500.0,0.00046575,120]
[355667738,1741450233029,-500.0,0.00046575,120]
[355667739,1741450233042,-500.0,0.00046575,120]
[355667740,1741450233053,-500.0,0.00046575,5]
[355667741,1741450233064,-500.0,0.00046575,120]
[355667742,1741450233074,-235.2246693,0.00046575,120]
[355667743,1741450233085,-500.0,0.00046575,120]
[355667744,1741450233095,-301.5011335,0.00046575,120]
[355667745,1741450233105,-516.93947988,0.00046575,120]
[355667746,1741450233115,-500.0,0.00046575,120]
[355667747,1741450233126,-4197.06,0.00046575,2]
[355667748,1741450233137,-836.57,0.00046575,120]
[355667749,1741450233147,-508.30711993,0.00046575,120]
[355667750,1741450233158,-500.0,0.00046575,120]
[355667751,1741450233169,-1009.25,0.00046575,120]
[355667752,1741450233181,-1009.25,0.00046575,120]
[355667753,1741450233191,-718.57,0.00046575,120]
[355667754,1741450233202,-2724.65,0.00046575,120]
[355667755,1741450233213,-500.0,0.00046575,120]
[355667756,1741450233224,-500.0,0.00046575,120]
[355667757,1741450233234,-820.56,0.00046575,120]
[355667758,1741450233244,-500.0,0.00046575,120]
[355667759,1741450233255,-500.0,0.00046575,120]
[355667760,1741450233265,-500.0,0.00046575,120]
[355667761,1741450233280,-5352.97,0.00046575,120]
[355667762,1741450233292,-240.6395736,0.00046575,120]
[355667763,1741450233303,-500.0,0.00046575,120]
[355667764,1741450233314,-392.57812239,0.00046575,120]
[355667765,1741450233324,-513.97387247,0.00046575,120]
[355667766,1741450233334,-500.0,0.00046575,120]
[355667767,1741450233345,-500.0,0.00046575,120]
[355667768,1741450233355,-500.0,0.00046575,120]
[355667769,1741450233365,-511.00117257,0.00046575,120]
[355667770,1741450233375,-624.25,0.00046575,120]
[355667771,1741450233385,-410.30709602,0.00046575,120]
[355667772,1741450233399,-89.69290398,0.00046575,120]
[355667773,1741450233409,-500.0,0.00046575,120]
[355667774,1741450233419,-65.16801584,0.00046575,120]
[355667803,1741450238306,-500.0,0.00046573,2]
[355667818,1741450238437,-434.83198416,0.00046575,120]
[355667820,1741450238451,-505.63254439,0.00046575,120]
[355667822,1741450238461,-12936.23,0.00046575,120]
[355667824,1741450238471,-500.0,0.00046575,120]
[355667826,1741450238480,-300.89219109,0.00046575,120]
[355667828,1741450238490,-666.82,0.00046575,120]
[355667830,1741450238499,-844.20090146,0.00046575,90]
[355667832,1741450238509,-504.18756698,0.00046575,120]
[355667834,1741450238519,-500.0,0.00046575,120]
[355667836,1741450238528,-509.20289645,0.00046575,120]
[355667838,1741450238539,-500.0,0.00046575,120]
[355667840,1741450238549,-500.0,0.00046575,120]
[355667842,1741450238558,-507.00040383,0.00046575,120]
[355667844,1741450238569,-503.66914482,0.00046575,120]
[355667846,1741450238579,-560.13974935,0.00046575,120]
[355667848,1741450238589,-154.70584859,0.00046575,120]
[355667850,1741450238598,-1000.0,0.00046575,7]
[355667852,1741450238608,-516.22538291,0.00046575,120]
[355667854,1741450238617,-500.0,0.00046575,120]
[355667856,1741450238627,-512.96205649,0.00046575,120]
[355667858,1741450238637,-500.0,0.00046575,120]
[355667860,1741450238646,-13327.83,0.00046575,7]
[355667862,1741450238655,-505.97119795,0.00046575,120]
[355667864,1741450238665,-500.0,0.00046575,120]
[355667866,1741450238675,-2706.22,0.00046575,120]
[355667868,1741450238685,-1199.19,0.00046575,120]
[355667869,1741450238694,-1199.19,0.00046575,120]
[355667870,1741450238704,-1199.19,0.00046575,120]
[355667871,1741450238713,-1199.19,0.00046575,120]
[355667872,1741450238722,-307.19046025,0.00046575,120]
[355667873,1741450238733,-508.9447773,0.00046575,120]
[355667874,1741450238742,-526.9089251,0.00046575,120]
[355667875,1741450238752,-522.33387125,0.00046575,120]
[355667876,1741450238761,-2132.79,0.00046575,120]
[355667877,1741450238771,-523.73678083,0.00046575,120]
[355667878,1741450238780,-1044.81,0.00046575,120]
[355667879,1741450238791,-500.0,0.00046575,120]
[355667880,1741450238800,-506.81447175,0.00046575,120]
[355667881,1741450238809,-189.51713978,0.00046575,120]
[355667882,1741450238819,-500.0,0.00046575,120]
[355667883,1741450238828,-500.0,0.00046575,120]
[355667884,1741450238837,-500.0,0.00046575,120]
[355667885,1741450238846,-513.2813966,0.00046575,120]
[355667886,1741450238856,-513.85294894,0.00046575,120]
[355667887,1741450238865,-505.38054331,0.00046575,120]
[355667888,1741450238874,-427.88302104,0.00046575,120]
[355667889,1741450238883,-500.0,0.00046575,120]
[355667890,1741450238893,-544.65757719,0.00046575,120]
[355667891,1741450238902,-500.0,0.00046575,30]
[355667892,1741450238911,-503.67997924,0.00046575,120]
[355667893,1741450238920,-500.0,0.00046575,120]
[355667894,1741450238929,-500.0,0.00046575,120]
[355667895,1741450238938,-500.0,0.00046575,120]
[355667896,1741450238947,-508.94887327,0.00046575,120]
[355667898,1741450238957,-749.62,0.00046575,120]
[355667900,1741450238966,-500.0,0.00046575,120]
[355667902,1741450238976,-506.56562248,0.00046575,120]
[355667904,1741450238986,-542.81784306,0.00046575,120]
[355667906,1741450238995,-180.14888899,0.00046575,120]
[355667908,1741450239005,-500.0,0.00046575,120]
[355667910,1741450239014,-163.72414308,0.00046575,120]
[355667912,1741450239024,-512.94923013,0.00046575,120]
[355667914,1741450239033,-500.0,0.00046575,2]
[355667916,1741450239043,-500.0,0.00046575,120]
[355667918,1741450239052,-500.0,0.00046575,120]
[355667920,1741450239062,-500.0,0.00046575,120]
[355667922,1741450239072,-360.60368396,0.00046575,120]
[355667924,1741450239081,-435.37324081,0.00046575,120]
[355667926,1741450239091,-500.0,0.00046575,120]
[355667928,1741450239101,-500.0,0.00046575,120]
[355667930,1741450239110,-166.02734645,0.00046575,120]
[355667932,1741450239120,-500.0,0.00046575,120]
[355667934,1741450239130,-511.56863627,0.00046575,120]
[355667936,1741450239140,-515.09519555,0.00046575,120]
[355667938,1741450239150,-767.85,0.00046575,120]
[355667940,1741450239159,-526.91539129,0.00046575,120]
[355667942,1741450239169,-500.0,0.00046575,120]
[355667944,1741450239179,-536.4954443,0.00046575,120]
[355667946,1741450239189,-521.6795734,0.00046575,120]
[355667948,1741450239199,-9999.0,0.00046575,2]
[355667950,1741450239208,-500.0,0.00046575,120]
[355667952,1741450239218,-500.0,0.00046575,120]
[355667954,1741450239227,-500.0,0.00046575,2]
[355667956,1741450239237,-534.26905312,0.00046575,120]
[355667958,1741450239246,-529.13909038,0.00046575,120]
[355667959,1741450239256,-500.0,0.00046575,120]
[355667960,1741450239267,-500.0,0.00046575,2]
[355667962,1741450239282,-500.0,0.00046575,120]
[355667964,1741450239292,-500.0,0.00046575,120]
[355667965,1741450239301,-800.05,0.00046575,2]
[355667966,1741450239311,-500.0,0.00046575,120]
[355667967,1741450239320,-283.40772047,0.00046575,120]
[355667968,1741450239329,-408.36796685,0.00046575,120]
[355667969,1741450239339,-517.41852367,0.00046575,120]
[355667970,1741450239350,-500.0,0.00046575,120]
[355667971,1741450239360,-500.0,0.00046575,120]
[355667972,1741450239369,-500.0,0.00046575,2]
[355667973,1741450239379,-629.88,0.00046575,120]
[355667974,1741450239388,-4022.18,0.00046575,2]
[355667975,1741450239398,-895.01362178,0.00046839,4]
[355667976,1741450239408,-1009.25,0.00046848,120]
[355667978,1741450239418,-1325.68,0.00046848,120]
[355667980,1741450239428,-1199.19,0.00046848,120]
[355667982,1741450239438,-1199.19,0.00046848,120]
[355667983,1741450239447,-254.91945679,0.00046849,120]
[355667984,1741450239456,-500.0,0.00046849,120]
[355667985,1741450239465,-500.0,0.00046849,120]
[355667986,1741450239474,-500.0,0.00046849,120]
[355667987,1741450239484,-505.27740974,0.00046849,120]
[355667988,1741450239493,-381.20780864,0.00046849,120]
[355667989,1741450239503,-801.55,0.00046849,120]
[355667990,1741450239512,-500.0,0.00046849,120]
[355667991,1741450239522,-500.0,0.00046849,120]
[355667992,1741450239532,-515.37400784,0.00046849,120]
[355667993,1741450239542,-500.0,0.00046849,120]
[355667994,1741450239552,-500.0,0.00046849,120]
[355667996,1741450239562,-3101.0,0.00046849,120]
[355667998,1741450239571,-500.0,0.00046849,120]
[355668000,1741450239580,-500.0,0.00046849,120]
[355668002,1741450239590,-566.66,0.00046849,120]
[355668004,1741450239600,-500.0,0.00046849,120]
[355668006,1741450239610,-500.0,0.00046849,120]
[355668008,1741450239620,-500.0,0.00046849,5]
[355668010,1741450239629,-500.0,0.00046849,120]
[355668012,1741450239638,-515.51752005,0.00046849,120]
[355668014,1741450239647,-500.0,0.00046849,120]
[355668016,1741450239657,-836.57,0.00046849,120]
[355668018,1741450239666,-554.46131479,0.00046849,120]
[355668020,1741450239675,-718.57,0.00046849,120]
[355668021,1741450239685,-2724.65,0.00046849,120]
[355668022,1741450239696,-500.0,0.00046849,120]
[355668023,1741450239706,-500.0,0.00046849,120]
[355668024,1741450239716,-820.56,0.00046849,120]
[355668025,1741450239725,-161.38121059,0.00046849,120]
[355668026,1741450239735,-152.39975125,0.00046849,120]
[355668027,1741450239745,-500.0,0.00046849,120]
[355668028,1741450239755,-5352.97,0.00046849,120]
[355668029,1741450239764,-500.0,0.00046849,120]
[355668030,1741450239774,-502.32969201,0.00046849,120]
[355668031,1741450239783,-500.0,0.00046849,120]
[355668032,1741450239797,-500.0,0.00046849,120]
[355668033,1741450239807,-624.25,0.00046849,120]
[355668034,1741450239816,-500.0,0.00046849,120]
[355668035,1741450239826,-12936.23,0.00046849,120]
[355668036,1741450239835,-500.0,0.00046849,120]
[355668037,1741450239845,-500.0,0.00046849,120]
[355668038,1741450239854,-500.0,0.00046849,120]
[355668039,1741450239863,-500.0,0.00046849,120]
[355668040,1741450239872,-1000.0,0.00046849,7]
[355668041,1741450239881,-500.0,0.00046849,120]
[355668042,1741450239891,-13327.83,0.00046849,7]
[355668043,1741450239901,-518.76118132,0.00046849,120]
[355668044,1741450239910,-2706.22,0.00046849,120]
[355668045,1741450239919,-2132.79,0.00046849,120]
[355668046,1741450239928,-1044.81,0.00046849,120]
[355668047,1741450239938,-500.0,0.00046849,120]
[355668048,1741450239947,-500.0,0.00046849,120]
[355668049,1741450239957,-500.0,0.00046849,120]
[355668050,1741450239967,-500.36395909,0.00046849,120]
[355668051,1741450239977,-500.0,0.00046849,120]
[355668052,1741450239986,-622.09568481,0.00046849,30]
[355668053,1741450239996,-365.77150341,0.00046849,120]
[355668054,1741450240005,-500.0,0.00046849,120]
[355668055,1741450240015,-500.0,0.00046849,120]
[355668057,1741450240024,-749.62,0.00046849,120]
[355668058,1741450240033,-500.0,0.00046849,120]
[355668059,1741450240050,-564.66866889,0.00046849,120]
[355668061,1741450240060,-500.0,0.00046849,2]
[355668063,1741450240070,-500.0,0.00046849,120]
[355668064,1741450240080,-500.0,0.00046849,120]
[355668065,1741450240089,-500.0,0.00046849,120]
[355668066,1741450240098,-500.0,0.00046849,120]
[355668067,1741450240108,-500.0,0.00046849,120]
[355668068,1741450240116,-500.0,0.00046849,120]
[355668069,1741450240125,-500.0,0.00046849,120]
[355668070,1741450240134,-9999.0,0.00046849,2]
[355668071,1741450240143,-500.0,0.00046849,120]
[355668072,1741450240152,-500.0,0.00046849,120]
[355668073,1741450240162,-500.0,0.00046849,2]
[355668074,1741450240172,-580.86545343,0.00046849,120]
[355668075,1741450240181,-500.0,0.00046849,2]
[355668076,1741450240191,-500.0,0.00046849,120]
[355668077,1741450240200,-376.36395936,0.00046849,120]
[355668078,1741450240210,-800.05,0.00046849,2]
[355668079,1741450240219,-500.0,0.00046849,120]
[355668080,1741450240228,-500.0,0.00046849,120]
[355668081,1741450240237,-500.0,0.00046849,120]
[355668082,1741450240247,-500.0,0.00046849,2]
[355668083,1741450240256,-629.88,0.00046849,120]
[355668084,1741450240267,-4022.18,0.00046849,2]
[355668085,1741450240279,-500.0,0.00046873,10]
[355668086,1741450240291,-895.01362178,0.0004699,4]
[355668087,1741450240301,-5000.0,0.00047,30]
[355668088,1741450240311,-181.21139645,0.00047016,2]
[355668089,1741450240320,-622.2,0.00047095,2]
[355668090,1741450240330,-895.01362178,0.00047113,4]
[355668091,1741450240339,-1009.25,0.00047122,120]
[355668092,1741450240349,-1199.19,0.00047122,120]
[355668093,1741450240358,-1199.19,0.00047122,120]
[355668094,1741450240368,-500.0,0.00047123,120]
[355668095,1741450240378,-500.0,0.00047123,120]
[355668096,1741450240387,-534.02273981,0.00047123,120]
[355668097,1741450240397,-801.55,0.00047123,120]
[355668098,1741450240407,-500.0,0.00047123,120]
[355668099,1741450240416,-630.99624878,0.00047123,120]
[355668100,1741450240426,-500.0,0.00047123,120]
[355668102,1741450240436,-518.54809703,0.00047123,120]
[355668104,1741450240446,-3101.0,0.00047123,120]
[355668106,1741450240456,-500.0,0.00047123,120]
[355668108,1741450240467,-541.14762266,0.00047123,120]
[355668110,1741450240477,-566.66,0.00047123,120]
[355668112,1741450240486,-500.0,0.00047123,120]
[355668114,1741450240496,-500.0,0.00047123,120]
[355668116,1741450240505,-509.25224059,0.00047123,5]
[355668118,1741450240515,-500.0,0.00047123,120]
[355668120,1741450240524,-500.0,0.00047123,120]
[355668122,1741450240533,-836.57,0.00047123,120]
[355668124,1741450240545,-718.57,0.00047123,120]
[355668126,1741450240554,-2724.65,0.00047123,120]
[355668128,1741450240563,-500.0,0.00047123,120]
[355668130,1741450240572,-500.0,0.00047123,120]
[355668132,1741450240582,-820.56,0.00047123,120]
[355668134,1741450240591,-500.0,0.00047123,120]
[355668136,1741450240600,-5352.97,0.00047123,120]
[355668148,1741450240703,-500.0,0.00047123,120]
[355668150,1741450240714,-500.0,0.00047123,120]
[355668152,1741450240724,-500.0,0.00047123,120]
[355668154,1741450240733,-624.25,0.00047123,120]
[355668156,1741450240743,-500.0,0.00047123,120]
[355668158,1741450240752,-12936.23,0.00047123,120]
[355668160,1741450240762,-522.26920137,0.00047123,120]
[355668162,1741450240771,-500.0,0.00047123,120]
[355668164,1741450240780,-500.0,0.00047123,120]
[355668166,1741450240792,-500.0,0.00047123,120]
[355668168,1741450240801,-1000.0,0.00047123,7]
[355668170,1741450240810,-500.0,0.00047123,120]
[355668172,1741450240820,-13327.83,0.00047123,7]
[355668174,1741450240829,-2706.22,0.00047123,120]
[355668176,1741450240839,-2132.79,0.00047123,120]
[355668178,1741450240849,-1044.81,0.00047123,120]
[355668180,1741450240859,-504.45314012,0.00047123,120]
[355668182,1741450240868,-500.0,0.00047123,120]
[355668184,1741450240877,-563.62689189,0.00047123,120]
[355668186,1741450240887,-500.0,0.00047123,120]
[355668188,1741450240896,-500.0,0.00047123,120]
[355668190,1741450240905,-500.0,0.00047123,120]
[355668192,1741450240915,-500.0,0.00047123,120]
[355668194,1741450240925,-749.62,0.00047123,120]
[355668196,1741450240934,-500.0,0.00047123,2]
[355668198,1741450240944,-500.0,0.00047123,120]
[355668200,1741450240954,-268.62319996,0.00047123,120]
[355668202,1741450240963,-500.0,0.00047123,120]
[355668204,1741450240972,-500.0,0.00047123,120]
[355668206,1741450240982,-500.0,0.00047123,120]
[355668208,1741450240992,-500.0,0.00047123,120]
[355668210,1741450241002,-500.0,0.00047123,120]
[355668212,1741450241011,-9999.0,0.00047123,2]
[355668214,1741450241021,-500.0,0.00047123,120]
[355668216,1741450241030,-500.0,0.00047123,120]
[355668218,1741450241041,-500.0,0.00047123,2]
[355668220,1741450241050,-500.0,0.00047123,2]
[355668222,1741450241060,-500.0,0.00047123,120]
[355668224,1741450241069,-800.05,0.00047123,2]
[355668226,1741450241079,-500.0,0.00047123,120]
[355668228,1741450241088,-500.0,0.00047123,120]
[355668230,1741450241098,-500.0,0.00047123,120]
[355668232,1741450241108,-500.0,0.00047123,2]
[355668234,1741450241118,-629.88,0.00047123,120]
[355668236,1741450241127,-4022.18,0.00047123,2]
[355668238,1741450241137,-500.0,0.00047173,10]
[355668240,1741450241146,-500.0,0.00047173,10]
[355668242,1741450241156,-500.0,0.00047173,10]
[355668244,1741450241166,-500.0,0.00047173,10]
[355668246,1741450241175,-500.0,0.00047173,10]
[355668248,1741450241185,-507.05402076,0.00047173,10]
[355668250,1741450241194,-500.0,0.00047173,10]
[355668252,1741450241203,-500.0,0.00047173,10]
[355668254,1741450241213,-500.0,0.00047173,10]
[355668256,1741450241222,-314.97205144,0.00047384,28]
[355668258,1741450241232,-1790.02724356,0.00047387,4]
[355668260,1741450241241,-302.0,0.00047387,60]
[355668262,1741450241251,-1009.25,0.00047396,120]
[355668264,1741450241260,-1199.19,0.00047396,120]
[355668266,1741450241271,-1199.19,0.00047396,120]
[355668268,1741450241284,-500.0,0.00047397,120]
[355668270,1741450241296,-500.0,0.00047397,120]
[355668272,1741450241305,-801.55,0.00047397,120]
[355668274,1741450241315,-500.0,0.00047397,120]
[355668276,1741450241324,-500.0,0.00047397,120]
[355668278,1741450241334,-3101.0,0.00047397,120]
[355668280,1741450241343,-500.0,0.00047397,120]
[355668282,1741450241355,-566.66,0.00047397,120]
[355668284,1741450241365,-500.0,0.00047397,120]
[355668286,1741450241375,-500.0,0.00047397,120]
[355668288,1741450241384,-500.0,0.00047397,120]
[355668290,1741450241394,-500.0,0.00047397,120]
[355668292,1741450241403,-836.57,0.00047397,120]
[355668294,1741450241412,-718.57,0.00047397,120]
[355668296,1741450241421,-2724.65,0.00047397,120]
[355668298,1741450241431,-500.0,0.00047397,120]
[355668300,1741450241440,-500.0,0.00047397,120]
[355668302,1741450241449,-820.56,0.00047397,120]
[355668304,1741450241459,-500.0,0.00047397,120]
[355668306,1741450241468,-5352.97,0.00047397,120]
[355668308,1741450241477,-500.0,0.00047397,120]
[355668310,1741450241485,-500.0,0.00047397,120]
[355668312,1741450241493,-500.0,0.00047397,120]
[355668314,1741450241501,-624.25,0.00047397,120]
[355668316,1741450241510,-507.27316041,0.00047397,120]
[355668318,1741450241520,-12936.23,0.00047397,120]
[355668320,1741450241529,-500.0,0.00047397,120]
[355668322,1741450241540,-453.65283505,0.00047397,120]
[355668324,1741450241549,-637.20043369,0.00047397,120]
[355668326,1741450241560,-1000.0,0.00047397,7]
[355668328,1741450241569,-500.0,0.00047397,120]
[355668330,1741450241578,-13327.83,0.00047397,7]
[355668332,1741450241588,-2706.22,0.00047397,120]
[355668334,1741450241598,-2132.79,0.00047397,120]
[355668336,1741450241607,-1044.81,0.00047397,120]
[355668338,1741450241617,-500.0,0.00047397,120]
[355668340,1741450241627,-500.0,0.00047397,120]
[355668342,1741450241636,-508.05714841,0.00047397,120]
[355668344,1741450241645,-500.0,0.00047397,120]
[355668349,1741450241694,-500.0,0.00047397,120]
[355668351,1741450241704,-749.62,0.00047397,120]
[355668352,1741450241713,-500.0,0.00047397,120]
[355668355,1741450241723,-500.0,0.00047397,2]
[355668357,1741450241733,-425.82052716,0.00047397,120]
[355668358,1741450241743,-522.02441341,0.00047397,120]
[355668361,1741450241752,-500.0,0.00047397,120]
[355668362,1741450241762,-500.0,0.00047397,120]
[355668365,1741450241771,-500.0,0.00047397,120]
[355668366,1741450241781,-9999.0,0.00047397,2]
[355668368,1741450241793,-322.9623367,0.00047397,120]
[355668370,1741450241802,-500.0,0.00047397,120]
[355668373,1741450241812,-500.0,0.00047397,2]
[355668374,1741450241825,-501.23477947,0.00047397,2]
[355668376,1741450241835,-500.0,0.00047397,120]
[355668378,1741450241845,-800.05,0.00047397,2]
[355668381,1741450241855,-500.0,0.00047397,120]
[355668382,1741450241865,-610.41317111,0.00047397,120]
[355668384,1741450241875,-500.0,0.00047397,120]
[355668387,1741450241884,-500.0,0.00047397,2]
[355668389,1741450241895,-629.88,0.00047397,120]